Cogmind - Beta 10.1 @@@ ROGUE MODE // 2020.10.04 @ 00:08:51 Player: netctrl Result: Destroyed by as-61247 with Assembled Blade Performance ------------- Evolutions (1) 500 Regions Visited (4) 800 Robots Destroyed (20) 100 Value Destroyed (440) 440 Prototype IDs (0) 0 Alien Tech Used (0) 0 Bonus (200) 200 TOTAL SCORE: 2040 Bonus ------- Pacifist 200 Cogmind --------- Core Integrity 0/400 Matter 300/300 Energy 100/100 System Corruption 0% Temperature Cool (0) Movement Core (100) Ox1 Location -9/Mines Parts ------- > --- POWER (2) -------- (None) > --- PROPULSION (3) --- (None) > --- UTILITY (2) ------ Small Storage Unit > --- WEAPON (2) ------- (None) > --- INVENTORY (6) ---- Mining Laser Peak State ------------ > --- POWER ------------ Ion Engine Light Ion Engine > --- PROPULSION ------- Aluminum Leg Aluminum Leg Aluminum Leg > --- UTILITY ---------- Small Storage Unit > --- WEAPON ----------- Light EM Pulse Cannon Grenade Launcher > --- INVENTORY -------- (None) [Rating: 9] Favorites ----------- Power Ion Engine Engine Ion Engine Propulsion Aluminum Leg Leg Aluminum Leg Utility Small Storage Unit Device Terrain Scanner Storage Small Storage Unit Weapon Grenade Launcher Energy Gun Medium Laser Energy Cannon Light EM Pulse Cannon Ballistic Gun Light Assault Rifle Launcher Grenade Launcher Build | -11 -10 -10 -9 -9 ------- Run | Scr Mat Min Mat Min Slots Evolved 2 | . . . 2 . Power 1 | . . . 1 . Propulsion 1 | . . . 1 . Utility . | . . . . . Weapon . | . . . . . Parts Attached 18 | 6 1 . 10 1 Power 3 | 1 . . 2 . Engine 3 | 1 . . 2 . Core . | . . . . . Reactor . | . . . . . Propulsion 7 | 2 . . 5 . Treads . | . . . . . Leg 7 | 2 . . 5 . Wheel . | . . . . . Hover . | . . . . . Flight . | . . . . . Utility 2 | 1 1 . . . Device 1 | . 1 . . . Storage 1 | 1 . . . . Processor . | . . . . . Hackware . | . . . . . Protection . | . . . . . Artifact . | . . . . . Weapon 6 | 2 . . 3 1 Energy Gun 3 | 2 . . 1 . Energy Cannon 1 | . . . 1 . Ballistic Gun 1 | . . . . 1 Ballistic Cannon . | . . . . . Launcher 1 | . . . 1 . Special Weapon . | . . . . . Impact Weapon . | . . . . . Slashing Weapon . | . . . . . Piercing Weapon . | . . . . . Special Melee Weapon . | . . . . . Unidentified Prototypes . | . . . . . Parts Lost 13 | . . . 5 8 Power 3 | . . . 1 2 Propulsion 4 | . . . 1 3 Utility 1 | . . . 1 . Weapon 5 | . . . 2 3 Highest Loss Streak 7 | . . . 4 7 Average Slot Usage (%) 82 | . 87 100 77 82 Engine 15 | . 14 14 11 20 Leg 29 | . 28 28 28 30 Device 4 | . 2 14 6 . Storage 11 | . 14 14 11 11 Energy Gun 9 | . 28 28 8 . Energy Cannon 4 | . . . 1 9 Ballistic Gun 1 | . . . . 4 Launcher 5 | . . . 9 6 Naked Turns . | . . . . . Heaviest Build 19 | 13 14 14 19 19 Greatest Support 30 | 20 20 20 30 30 Greatest Overweight (x) . | . . . . . Average Overweight (x) . | . . . . . Largest Inventory Capacity 6 | 6 6 6 6 6 Average Capacity 5 | 4 6 6 6 6 Most Carried 4 | 3 2 1 4 2 Average Carried . | . . 1 1 1 Final Capacity 6 | 6 6 6 6 6 Final Carried 1 | . 1 1 1 1 Class Distribution -------------------- 59% | Mutant 40% | Scavenger-Mutant Dominant Class ---------------- Mutant | -10/Materials Mutant | -10/Mines Mutant | -9/Materials Scavenger-Mutant | -9/Mines Resources | -11 -10 -10 -9 -9 ----------- Run | Scr Mat Min Mat Min Matter Collected 530 | 205 . 49 251 25 Remotely . | . . . . . Salvage Created 326 | . . . 305 21 Parts 42 | . . . 40 2 Haulers Intercepted . | . . . . . Recyclers Shooed 1 | . . . 1 . Parts Field Recycled . | . . . . . Retrieved Matter . | . . . . . Parts Self-Destructed . | . . . . . Prevented . | . . . . . Kills | -11 -10 -10 -9 -9 ------- Run | Scr Mat Min Mat Min Combat Hostiles Destroyed 11 | . . . 8 3 Cannons 1 | . . . . 1 AOE 10 | . . . 8 2 Classes Destroyed 8 | . . . 7 1 Worker 2 | . . . 2 . Builder 4 | . . . 4 . Tunneler 1 | . . . 1 . Watcher 2 | . . . 2 . Swarmer 3 | . . . . 3 Grunt 6 | . . . 6 . Duelist 1 | . . . 1 . Sentry 1 | . . . 1 . Best Kill Streak 9 | . . . 9 3 Combat Bots Only 4 | . . . 4 3 Max Kills in Single Turn 6 | . . . 6 2 Gunslinging . | . . . . . Exploded 2 | . . . 2 2 Melee . | . . . . . Uniques/NPCs Destroyed . | . . . . . Combat | -11 -10 -10 -9 -9 -------- Run | Scr Mat Min Mat Min Damage Taken 1404 | . 68 . 701 635 Core 449 | . 26 . 163 260 Absorbed by Shields . | . . . . . Core Remaining (%) 94 | 100 . 89 . . Volleys Fired 22 | . . . 19 3 Largest 2 | . . . 2 2 Hottest 86 | . . . 80 86 Shots Fired 34 | . . . 30 4 Gun 13 | . . . 13 . Cannon 3 | . . . . 3 Launcher 18 | . . . 17 1 Special . | . . . . . Kinetic . | . . . . . Thermal 7 | . . . 7 . Explosive 18 | . . . 17 1 Electromagnetic 9 | . . . 6 3 Robot Hit Streak 6 | . . . 6 1 Robot Miss Streak 4 | . . . 4 2 Penetration Max . | . . . . . Secondary Targets . | . . . . . Shots Hit Robots 20 | . . . 18 2 Core Hits 36 | . . . 33 3 Critical Hits . | . . . . . Critical Kills . | . . . . . Critical Parts Destroyed . | . . . . . Melee Attacks . | . . . . . Impact . | . . . . . Slashing . | . . . . . Piercing . | . . . . . Sneak Attacks . | . . . . . Combat Hostiles . | . . . . . Follow-up Attacks . | . . . . . Damage Inflicted 1234 | . . . 1100 134 Guns 84 | . . . 84 . Cannons 19 | . . . . 19 Explosions 1131 | . . . 1016 115 Melee . | . . . . . Ramming . | . . . . . Kinetic . | . . . . . Thermal 25 | . . . 25 . Explosive 1131 | . . . 1016 115 Electromagnetic 78 | . . . 59 19 Impact . | . . . . . Slashing . | . . . . . Piercing . | . . . . . Highest Corruption . | . . . . . Average Corruption . | . . . . . Corruption Purged . | . . . . . Overload Shots . | . . . . . Overflow Damage 18 | . . . 18 . Projectiles . | . . . . . Explosions 18 | . . . 18 . Melee . | . . . . . Knockbacks . | . . . . . Impact . | . . . . . Kinetic . | . . . . . Secondary . | . . . . . Self-Inflicted Damage 346 | . . . 337 9 Shots 13 | . . . 12 1 Rammed . | . . . . . Targets Rammed . | . . . . . Kicked . | . . . . . Crushed . | . . . . . Highest Temperature 55 | . . . 23 55 Average Temperature 15 | . . . 8 32 Received Heat Transfer 132 | . 39 . 93 . Siege Activations . | . . . . . Robots Corrupted . | . . . . . Combat Hostiles . | . . . . . Parts Fried . | . . . . . Impact Corruptions . | . . . . . Robots Melted . | . . . . . Combat Hostiles . | . . . . . Parts Melted . | . . . . . Heat Transferred 74 | . . . 74 . Parts Sabotaged . | . . . . . Parts Stolen . | . . . . . Parts Stripped . | . . . . . Power Chain Reactions . | . . . . . Missiles Intercepted . | . . . . . Alert | -11 -10 -10 -9 -9 ------- Run | Scr Mat Min Mat Min Peak Influence 249 | . 1 . 249 186 Initial 96 | . . . . 96 Average 80 | . . . 106 119 Maximum Alert Level 1 | . . . 1 . Low Security (%) 88 | 100 100 100 67 100 Level 1 11 | . . . 32 . Level 2 . | . . . . . Level 3 . | . . . . . Level 4 . | . . . . . Level 5 . | . . . . . High Security . | . . . . . Max Security . | . . . . . Squads Dispatched 1 | . . . 1 . Investigation . | . . . . . Extermination . | . . . . . Reinforcement 1 | . . . 1 . Assault . | . . . . . Garrison . | . . . . . Intercept . | . . . . . Construction Impeded 1 | . . . 1 . Haulers Reinforced . | . . . . . Stealth | -11 -10 -10 -9 -9 --------- Run | Scr Mat Min Mat Min Distress Signals 2 | . . . 2 . Communications Jammed . | . . . . . Distress Signals . | . . . . . Times Spotted 34 | . 4 . 13 17 Peak Tracking Total 18 | . 5 . 3 18 Tactical Retreats 6 | . . . 2 4 Traps | -11 -10 -10 -9 -9 ------- Run | Scr Mat Min Mat Min Traps Triggered . | . . . . . Indirectly . | . . . . . Trap Hack Attempts . | . . . . . Triggered . | . . . . . Disarmed . | . . . . . Reprogrammed . | . . . . . Reused . | . . . . . Traps Extracted . | . . . . . Installed . | . . . . . Triggered . | . . . . . Machines | -11 -10 -10 -9 -9 ---------- Run | Scr Mat Min Mat Min Machines Disabled 4 | . . . 3 1 Max in Single Turn 2 | . . . 2 1 Machines Sabotaged . | . . . . . Garrisons Compromised . | . . . . . Overloaded Fab Kills . | . . . . . Fab Network Shutdowns . | . . . . . Hacking | -11 -10 -10 -9 -9 --------- Run | Scr Mat Min Mat Min Machines Accessed 2 | . 2 . . . Terminals 1 | . 1 . . . Fabricators . | . . . . . Repair Stations . | . . . . . Recycling Units 1 | . 1 . . . Scanalyzers . | . . . . . Garrison Access . | . . . . . Total Hacks 4 | . 4 . . . Successful 4 | . 4 . . . Failed . | . . . . . Catastrophic . | . . . . . Database Lockouts . | . . . . . Manual . | . . . . . Terminals 1 | . 1 . . . Fabricators . | . . . . . Repair Stations . | . . . . . Recycling Units 3 | . 3 . . . Scanalyzers . | . . . . . Garrison Access . | . . . . . Terminal Hacks 1 | . 1 . . . Locate Traps 1 | . 1 . . . Fabricator Hacks . | . . . . . Repair Station Hacks . | . . . . . Recycling Unit Hacks 3 | . 3 . . . Recycle Component 1 | . 1 . . . Report Inventory 1 | . 1 . . . Retrieve Matter 1 | . 1 . . . Scanalyzer . | . . . . . Garrison Access Hacks . | . . . . . Unauthorized Hacks . | . . . . . Terminals . | . . . . . Fabricators . | . . . . . Repair Stations . | . . . . . Recycling Units . | . . . . . Scanalyzers . | . . . . . Garrison Access . | . . . . . Data Cores Recovered . | . . . . . Used . | . . . . . Hacking Detections 1 | . 1 . . . Full Trace Events . | . . . . . Feedback Events . | . . . . . Feedback Blocked . | . . . . . Robot Schematics Acquired . | . . . . . Robots Built . | . . . . . Matter . | . . . . . Time . | . . . . . Total Robot Build Rating . | . . . . . Part Schematics Acquired . | . . . . . Parts Built . | . . . . . Matter . | . . . . . Time . | . . . . . Total Part Build Rating . | . . . . . Parts Repaired . | . . . . . Time . | . . . . . Parts Recycled 1 | . 1 . . . Recycled Matter . | . . . . . Retrieved Matter . | . . . . . Retrieved Components . | . . . . . Parts Scanalyzed . | . . . . . Part Schematics Acquired . | . . . . . Parts Damaged . | . . . . . Bothacking | -11 -10 -10 -9 -9 ------------ Run | Scr Mat Min Mat Min Used RIF Installer . | . . . . . Robots Hacked . | . . . . . Non-combat . | . . . . . Combat . | . . . . . Robot Hacks Applied . | . . . . . Relay Couplers Released . | . . . . . Robots Rewired . | . . . . . Allies Hacked . | . . . . . Hacks Repelled . | . . . . . Allies | -11 -10 -10 -9 -9 -------- Run | Scr Mat Min Mat Min Total Allies 2 | . . . . 2 Largest Group 2 | . . . . 2 Highest-Rated Group 45 | . . . . 45 Highest-Rated Ally 31 | . . . . 31 Total Orders . | . . . . . Ally Attacks 2 | . . . . 2 Total Damage 20 | . . . . 20 Kills 1 | . . . . 1 Allies Corrupted . | . . . . . Allies Melted . | . . . . . Intel | -11 -10 -10 -9 -9 ------- Run | Scr Mat Min Mat Min Robot Analysis Total . | . . . . . Derelict Logs Recovered 1 | . . . . 1 Drone Launches . | . . . . . Drone Recoveries . | . . . . . Exploration | -11 -10 -10 -9 -9 ------------- Run | Scr Mat Min Mat Min Turns Passed 881 | 52 132 70 308 319 Spaces Moved 656 | 43 107 59 196 251 Core 15 | 15 . . . . Treads . | . . . . . Legs 641 | 28 107 59 196 251 Wheels . | . . . . . Hover . | . . . . . Flight . | . . . . . Fastest Speed 50 | 50 120 120 120 120 Average Speed 118 | 95 120 120 120 120 Slowest Speed 120 | 120 120 120 120 120 Overloaded Moves . | . . . . . Propulsion Burnouts . | . . . . . Robots Hopped . | . . . . . Cave-ins Triggered . | . . . . . Exploration Rate (%) 22 | 3 24 9 17 58 Regions Visited 4 Branch Regions 2 Pre-discovered Areas 1 | . . . . 1 Known Exits Taken . | . . . . . Unknown Exits Taken 4 | 1 1 1 1 . Scrap Searched 2 | . . 1 . 1 Spaces Dug . | . . . . . Terrain Destroyed 101 | . . . 92 9 Melee . | . . . . . Projectile . | . . . . . AOE 101 | . . . 92 9 Terrain Rammed . | . . . . . Walls Destroyed . | . . . . . Machines Disabled . | . . . . . Actions | -11 -10 -10 -9 -9 --------- Run | Scr Mat Min Mat Min Total 726 | 54 110 58 239 265 Wait 11 | . . . 2 9 Move 652 | 42 106 58 195 251 Hop . | . . . . . Pick Up 19 | 6 3 . 9 1 Fast Attach . | . . . . . Attach 15 | 6 1 . 7 1 Detach 1 | . . . 1 . Swap 3 | . . . 3 . Drop 3 | . . . 3 . Fire 22 | . . . 19 3 Melee . | . . . . . Ram . | . . . . . Kick . | . . . . . Crush . | . . . . . Escape Stasis . | . . . . . Rewire . | . . . . . Trap . | . . . . . Miscellaneous . | . . . . . Route ------- -11/Scrapyard -10/Materials -10/Mines -9/Materials -9/Mines History --------- Turn | Location | Event 3 | -11/Scrapyard | Discovered new exit (range 15) 53 | -11/Scrapyard | Entered Materials 160 | -10/Materials | Discovered new exit (range 12) 185 | -10/Materials | Entered Mines 247 | -10/Mines | Discovered new exit (range 7) 255 | -10/Mines | Entered Materials 255 | -9/Materials | Evolved 2 slots: Power x1, Propulsion x1 315 | -9/Materials | Build established: Mutant 488 | -9/Materials | Lost 4 parts (1p1n1u1w) 519 | -9/Materials | Discovered new exit (range 14) 563 | -9/Materials | Entered Mines 602 | -9/Mines | Met a Derelict bent on vengeance 683 | -9/Mines | Learned location of Zion (-7) 785 | -9/Mines | Assembled infested the area 815 | -9/Mines | Build established: Scavenger-Mutant 849 | -9/Mines | Core integrity fell below 50% 879 | -9/Mines | Core integrity fell below 20% 882 | -9/Mines | Destroyed by as-61247 with Assembled Blade Last Messages --------------- 00805_ D-53 Grenadier unfolds itself. 00818_ Searching scrap... 00818_ Found Terrain Scanner. 00818_ Found Imp. Signal Interpreter. 00818_ Found 36 Matter. 00819_ Acquired 4 matter. 00842_ Aluminum Leg destroyed. 00846_ K-01 Serf collects debris. 00847_ Lgt. EM Pulse Cannon destroyed. 00849_ K-01 Serf collects debris. 00863_ as-61247 sneak attacks. 00864_ Lgt. Ion Engine destroyed. 00865_ as-61247 sneak attacks. 00865_ K-01 Serf suffers critical hit. 00865_ K-01 Serf destroyed. 00868_ Aluminum Leg destroyed. 00869_ as-50527 destroyed. 00873_ Ion Engine destroyed. 00875_ Lgt. Assault Rifle destroyed. 00875_ Aluminum Leg destroyed. Map ----- +----------------------------------------------------+ | | | | | | | | | | | ?????????????????????????????? | | ?????????????????????????????? | | ?????????????????????????????? | | ?????????????????????????????? | | ?????????????????????????????? | | ?????????????????????????????? | | ?????????????????????????????? | | ?????????????????????????????? | | ?????????????????????????????? | | ?????????????????????????????? | | ?????????????????????????????? | | ?????????????????????????????? | | ??????????###????????????????? | | ??????????# ????????????????? | | ??????????# ????????????????? | | ?????????? ????????????????? | | ??????????# #????????######?? | | ??????????# #???????## ]##? | | ??????????# #??????## #? | | ??????????# #??##### a a #? | | ??????????# #### @ ##? | | ?????????## ## % #?? | | ??????#### ! %a ##?? | | ?????## *% ### ####??? | | ?????# ###?####?????? | | ?????## !% ##????????????? | | ??????### ##?????????????? | | ????????## #??????????????? | | ?????????## ##??????????????? | | ??????????## #???????????????? | | ???????????# #???????????????? | | ???######### #???????????????? | | ???# #???????????????? | | ???# #########???????????????? | | ???# #???????????????????????? | | ???# #???????????????????????? | | ?### #???????????????????????? | | ?# #???????????????????????? | | ?# ###?????###???????????????? | | ## ## ???????????????? | | """ "??????????????????? | | ##### """ "??????????????????? | | ??????"""????????????????????? | | ??????? ???????????????????? | | ????????? "??????????????????? | +----------------------------------------------------+ Best States ------------- Heat Dissipation 28 Energy Generation 15 Energy Capacity 275 Matter Stores 300 Matter Capacity 300 Sight Range 16 Terrain Scan Range 14 Terrain Scan Density 10 Evasion (%) 50 Item Schematics ----------------- None Robot Schematics ------------------ None Fabricated ------------ Nothing Alien Tech Used ----------------- None Achievements -------------- None Challenges ------------ None Game ------ Seed AssembledHoverTrap Manual? 0 Play Time 00:11:53 Cumulative 5.2 hours Start 2020.10.03 @ 23:59:15 End 2020.10.04 @ 00:08:51 Sessions 1 Manual Loads 0 Difficulty Rogue Special Mode None Game No. 16 Rogue 16 Adventurer 0 Explorer 0 Win Type - Total 0 Types 0/0/0/0/0/0/0/0/0 Lore% 4 Gallery% 15 Achievement% 13 Wizard Run 0 Options --------- ASCII 1 Keyboard 1 Movement Numpad Keybinds 0 Fullscreen 1 Font 16/Terminus Map View 76x50 Tactical HUD 1 Map Filters NONE Filters NONE Steam 1 RUN: 2d63f3aa-dd95-4943-8c0f-da57fc46ae4b